bitfinex-derivatives/quotes_BTCF0:USTF0_20241117
["timestamp","ask_amount","ask_price","bid_price","bid_amount"]
[1731825656859,8.961e-05,90696.0,90695.0,0.58374963]
[1731825657360,8.961e-05,90696.0,90695.0,0.66566963]
[1731825657773,8.961e-05,90696.0,90695.0,0.66189803]
[1731825658069,8.961e-05,90696.0,90695.0,0.66565906]
[1731825658256,8.961e-05,90696.0,90695.0,0.16914769]
[1731825658462,8.961e-05,90696.0,90695.0,0.25106769]
[1731825658663,8.961e-05,90696.0,90695.0,0.33489906]
[1731825658871,8.961e-05,90696.0,90695.0,0.33489676]
[1731825659065,8.961e-05,90696.0,90695.0,0.33113803]
[1731825659269,8.961e-05,90696.0,90695.0,0.16914515]
[1731825659454,8.961e-05,90696.0,90695.0,0.24730666]
[1731825659656,8.961e-05,90696.0,90695.0,0.33489662]
[1731825660474,8.961e-05,90696.0,90695.0,0.59821029]
[1731825660660,0.00165409,90710.0,90709.0,0.055118]
[1731825660866,0.13219377,90718.0,90709.0,0.137038]
[1731825661065,0.13219377,90718.0,90717.0,0.13894437]
[1731825661267,0.055107,90727.0,90717.0,0.13894437]
[1731825661268,0.13219377,90721.0,90717.0,0.08383137]
[1731825661471,0.13219377,90723.0,90717.0,0.08383137]
[1731825661675,0.00010849,90720.0,90718.0,0.055113]
[1731825661878,0.00010849,90720.0,90719.0,0.08192]
[1731825666263,0.00010849,90720.0,90719.0,6.49665756]
[1731825666464,0.00010849,90720.0,90719.0,6.48865756]
[1731825668362,0.00010849,90720.0,90719.0,6.57248893]
[1731825669977,0.0314,90730.0,90729.0,0.055106]
[1731825670177,0.00165348,90732.0,90731.0,0.055105]
[1731825670381,0.00165348,90732.0,90731.0,0.49973637]
[1731825670679,0.00165348,90732.0,90731.0,0.61371738]
[1731825671578,0.0332,90741.0,90731.0,0.6137982]
[1731825671878,0.0332,90741.0,90740.0,0.49973037]
[1731825672176,0.0332,90741.0,90740.0,0.58165037]
[1731825673590,0.00010612,90748.0,90747.0,0.055095]
[1731825674383,0.00010612,90748.0,90747.0,0.22749937]
[1731825675272,0.00010612,90748.0,90747.0,0.55809937]
[1731825675978,0.00010612,90748.0,90747.0,0.61749334]
[1731825676285,0.00010612,90748.0,90747.0,0.36502055]
[1731825677072,0.00010612,90748.0,90747.0,0.28318055]
[1731825677271,0.00010612,90748.0,90747.0,0.36502055]
[1731825681583,0.00010612,90748.0,90747.0,0.35702055]
[1731825681783,0.00010612,90748.0,90747.0,6.77175811]
[1731825681984,0.00010612,90748.0,90747.0,6.70955811]
[1731825682289,0.0302,90768.0,90758.0,0.055088]
[1731825682500,0.0302,90768.0,90767.0,0.44463137]
[1731825682986,0.0302,90768.0,90767.0,0.49971437]
[1731825683391,0.0302,90779.0,90767.0,0.44463137]
[1731825683585,0.0302,90779.0,90778.0,0.13890737]
[1731825683776,0.0302,90779.0,90778.0,0.22074737]
[1731825684890,0.0302,90779.0,90778.0,0.136916]
[1731825685481,0.0614,90779.0,90778.0,0.136916]
[1731825696493,0.0614,90779.0,90778.0,0.128916]
[1731825696794,0.0614,90779.0,90778.0,6.54365356]
[1731825697481,0.0614,90779.0,90778.0,6.56569866]
[1731825699297,9.288e-05,90780.0,90778.0,6.56569866]
[1731825704796,9.288e-05,90780.0,90779.0,0.08342858]
[1731825705100,9.288e-05,90780.0,90779.0,0.00338024]
[1731825706005,9.288e-05,90780.0,90779.0,0.08680882]
[1731825707001,0.16406244,90784.0,90782.0,0.055074]
[1731825707184,0.055064,90799.0,90782.0,0.055074]
[1731825707185,0.13187853,90783.0,90782.0,0.055074]
[1731825707386,0.16406244,90789.0,90788.0,0.05507]
[1731825707589,0.0323,90799.0,90789.0,0.055069]
[1731825707797,0.0323,90799.0,90798.0,0.415864]
[1731825708107,0.0323,90799.0,90798.0,0.60944596]
[1731825708999,0.0323,90799.0,90798.0,0.52601738]
[1731825709203,0.1,90800.0,90798.0,0.52601738]
[1731825709204,0.1,90800.0,90798.0,0.60944596]
[1731825709505,0.1,90800.0,90799.0,0.0818]
[1731825710097,0.1,90800.0,90799.0,0.19193337]
[1731825711510,0.1,90800.0,90799.0,0.18393337]
[1731825713800,0.07520774,90800.0,90799.0,0.20611808]
[1731825715893,0.07520774,90800.0,90799.0,0.89268035]
[1731825716094,0.07520774,90800.0,90799.0,0.56609557]
[1731825716297,0.004,90809.0,90799.0,0.56609557]
[1731825716298,0.004,90809.0,90808.0,0.055058]
[1731825716607,0.00165216,90819.0,90808.0,0.52151864]
[1731825716608,0.00409084,90810.0,90808.0,0.52151864]
[1731825716802,0.00165216,90819.0,90817.0,0.055053]
[1731825716998,0.00165216,90819.0,90818.0,0.87111125]
[1731825717313,0.0306,90834.0,90818.0,0.60941716]
[1731825717602,0.0306,90834.0,90830.0,0.08342858]
[1731825718507,0.0306,90834.0,90831.0,0.00508563]
[1731825718695,0.0306,90834.0,90832.0,0.00508563]
[1731825719001,0.0306,90834.0,90830.0,0.44486858]
[1731825719205,0.0306,90834.0,90831.0,0.00508559]
[1731825719404,0.0306,90834.0,90830.0,0.44478858]
[1731825719609,0.0306,90834.0,90830.0,0.44422858]
[1731825719913,0.0306,90834.0,90830.0,0.08342858]
[1731825720797,0.0306,90834.0,90831.0,0.00509179]
[1731825720998,0.0306,90834.0,90828.0,0.08176]
[1731825720999,0.08342858,90832.0,90828.0,0.08176]
[1731825721302,0.055045,90829.0,90828.0,0.08176]
[1731825723802,0.08342858,90832.0,90819.0,0.055051]
[1731825724008,0.055047,90827.0,90820.0,0.08176]
[1731825724325,0.08342858,90832.0,90818.0,0.44996858]
[1731825724610,0.05505,90821.0,90819.0,0.08176]
[1731825725702,0.05505,90821.0,90820.0,0.08176]
[1731825726208,0.00018,90825.0,90818.0,0.0051]
[1731825726409,0.08342858,90821.0,90817.0,0.05109099]
[1731825726596,0.3608,90818.0,90814.0,0.08176]
[1731825726902,0.3608,90818.0,90806.0,0.19610891]
[1731825726903,0.055055,90813.0,90811.0,0.08341158]
[1731825727098,0.055055,90813.0,90811.0,0.13766804]
[1731825727299,0.055055,90813.0,90811.0,0.05590804]
[1731825727902,0.08342858,90816.0,90805.0,0.16518858]
[1731825728111,0.055059,90807.0,90805.0,0.16518858]
[1731825728299,0.055059,90807.0,90799.0,0.3608]
[1731825728300,0.36136001,90810.0,90799.0,0.3608]
[1731825728614,0.3608,90802.0,90797.0,0.19610891]
[1731825728798,0.0641,90801.0,90796.0,0.08176]
[1731825729706,0.055064,90798.0,90796.0,0.08176]
[1731825730599,0.055064,90798.0,90796.0,0.27786891]
[1731825730800,0.0641,90801.0,90796.0,0.27786891]
[1731825731409,0.0641,90801.0,90797.0,0.19610891]
[1731825732107,0.055064,90799.0,90796.0,0.27786891]
[1731825732301,0.055064,90799.0,90797.0,0.19610891]
[1731825732818,0.055064,90799.0,90795.0,0.055065]
[1731825732819,0.055064,90799.0,90798.0,0.19610891]
[1731825733117,0.055064,90799.0,90797.0,0.19610891]
[1731825733316,0.055064,90799.0,90798.0,0.19654413]
[1731825733610,0.055064,90799.0,90797.0,0.19654413]
[1731825733811,0.055066,90795.0,90792.0,0.05415178]
[1731825733998,0.055066,90795.0,90791.0,0.08176]
[1731825735314,0.055066,90795.0,90791.0,0.27830413]
[1731825735812,0.055066,90795.0,90792.0,0.19654413]
[1731825736313,0.055066,90795.0,90791.0,0.3981343]
[1731825737719,0.055066,90795.0,90791.0,0.13654782]
[1731825738215,0.0641,90801.0,90791.0,0.13654782]
[1731825738413,0.055063,90799.0,90795.0,0.19668229]
[1731825738614,0.0641,90801.0,90795.0,0.19668229]
[1731825738918,0.055064,90798.0,90794.0,0.19668229]
[1731825739120,0.055064,90798.0,90795.0,0.19668229]
[1731825739424,0.36136001,90802.0,90796.0,0.32379671]
[1731825739621,0.3608,90802.0,90800.0,0.055062]
[1731825739926,0.3608,90802.0,90800.0,0.25174429]
[1731825740305,0.3608,90802.0,90800.0,0.055062]
[1731825740510,0.05506,90805.0,90800.0,0.055062]
[1731825740917,0.055061,90804.0,90800.0,0.055062]
[1731825741429,0.055061,90804.0,90800.0,0.047062]
[1731825742220,0.055061,90804.0,90801.0,0.055062]
[1731825742424,0.0358,90809.0,90802.0,0.055061]
[1731825743310,0.055059,90807.0,90802.0,0.055061]
[1731825743514,0.055059,90807.0,90804.0,0.05506]
[1731825743928,0.0358,90809.0,90798.0,0.19668229]
[1731825744232,0.0358,90809.0,90808.0,0.055058]
[1731825744233,0.0051,90809.0,90808.0,0.055058]
[1731825744430,0.3608,90810.0,90808.0,0.055058]
[1731825744431,0.36136001,90810.0,90808.0,0.055058]
[1731825744638,0.3608,90810.0,90808.0,0.055058]
[1731825745917,0.3608,90810.0,90809.0,0.00510993]
[1731825746120,0.0051,90816.0,90809.0,0.00510993]
[1731825746433,0.0051,90816.0,90815.0,0.055054]
[1731825746630,0.3608,90819.0,90816.0,0.055053]
[1731825746820,0.36144,90819.0,90816.0,0.055053]
[1731825747020,0.3608,90819.0,90816.0,0.055053]
[1731825747224,0.415852,90819.0,90811.0,0.19668229]
[1731825747529,0.415852,90819.0,90811.0,0.055056]
[1731825747730,0.055055,90814.0,90810.0,0.19668229]
[1731825747916,0.49365442,90819.0,90807.0,0.19668229]
[1731825748115,0.49365442,90819.0,90806.0,0.19668229]
[1731825748116,0.055058,90809.0,90806.0,0.19668229]
[1731825749429,0.055058,90809.0,90807.0,0.19668229]
[1731825751134,0.36140001,90811.0,90804.0,0.19668229]
[1731825751438,0.3608,90811.0,90806.0,0.055059]
[1731825751625,0.3608,90811.0,90806.0,0.25174129]
[1731825751940,0.415856,90811.0,90806.0,0.055059]
[1731825752842,0.3608,90811.0,90806.0,0.055059]
[1731825753520,0.3608,90811.0,90807.0,0.19668229]
[1731825753836,0.055058,90809.0,90807.0,0.19668229]
[1731825754032,0.055058,90809.0,90806.0,0.25174129]
[1731825754224,0.36136001,90811.0,90806.0,0.19668229]
[1731825754417,0.415857,90811.0,90808.0,0.19668229]
[1731825754833,0.3608,90811.0,90808.0,0.19668229]
[1731825755022,0.055057,90810.0,90808.0,0.19668229]
[1731825755223,0.3608,90811.0,90808.0,0.19668229]
[1731825755224,0.055058,90809.0,90808.0,0.19668229]
[1731825755425,0.055058,90809.0,90804.0,0.26158648]
[1731825755717,0.055058,90809.0,90805.0,0.26158648]
[1731825756126,0.055058,90809.0,90805.0,0.31664648]
[1731825756526,0.055058,90809.0,90806.0,0.25358648]
[1731825757232,0.055058,90809.0,90806.0,0.30864548]
[1731825757823,0.055059,90807.0,90802.0,0.02204128]
[1731825758024,0.05506,90805.0,90802.0,0.07710328]
[1731825758230,0.415856,90811.0,90805.0,0.055059]
[1731825758727,0.415856,90811.0,90806.0,0.055059]
[1731825760232,0.08340774,90809.0,90802.0,0.34915889]
[1731825760444,0.055061,90804.0,90802.0,0.32711761]
[1731825760635,0.055061,90804.0,90801.0,0.10997233]
[1731825763333,0.08340774,90809.0,90806.0,0.055059]
[1731825763728,0.08340774,90809.0,90801.0,0.05491033]
[1731825763729,0.055059,90807.0,90801.0,0.05491033]
[1731825764039,0.055059,90807.0,90803.0,0.055061]
[1731825765329,0.08340774,90804.0,90803.0,0.055061]
[1731825765533,0.055064,90799.0,90797.0,0.055064]
[1731825765846,0.055065,90798.0,90796.0,6.41537756]
[1731825766143,0.055065,90798.0,90796.0,6.41473756]
[1731825766343,0.0304,90797.0,90796.0,6.41473756]
[1731825771451,0.0304,90797.0,90796.0,6.60384835]
[1731825771644,0.0304,90797.0,90796.0,6.40673756]
[1731825772948,0.0304,90797.0,90796.0,6.60382077]
[1731825773250,0.0304,90797.0,90796.0,6.40673756]
[1731825775043,0.0304,90797.0,90796.0,6.60377918]
[1731825775547,0.0304,90797.0,90796.0,6.40673756]
[1731825778048,0.11380774,90797.0,90796.0,6.40673756]
[1731825781063,0.08340774,90797.0,90796.0,6.40673756]
[1731825781359,0.032,90797.0,90796.0,6.40673756]
[1731825781564,0.16395342,90797.0,90796.0,6.40673756]
[1731825782063,0.032,90797.0,90796.0,6.40673756]
[1731825782647,0.3624,90797.0,90796.0,6.40673756]
[1731825782958,0.41597929,90797.0,90796.0,6.40673756]
[1731825783147,0.08557929,90797.0,90796.0,6.40673756]
[1731825783345,0.41597929,90797.0,90796.0,6.40673756]
[1731825785149,0.3624,90797.0,90796.0,6.40673756]
[1731825785660,0.60937662,90797.0,90796.0,6.40673756]
[1731825785860,0.44448,90797.0,90796.0,6.40673756]
[1731825786053,0.49805971,90797.0,90796.0,6.40673756]
[1731825786557,0.52729459,90797.0,90796.0,6.39873756]
[1731825786861,0.60937459,90797.0,90796.0,6.39873756]
[1731825787465,0.44448,90797.0,90796.0,6.39873756]
[1731825787648,0.60937416,90797.0,90796.0,6.39873756]
[1731825787852,0.49806038,90797.0,90796.0,6.39873756]
[1731825788055,0.44448,90797.0,90796.0,6.39873756]
[1731825789461,0.49806106,90797.0,90796.0,6.39873756]
[1731825790556,0.49806129,90797.0,90796.0,6.39873756]
[1731825791467,0.79806129,90797.0,90796.0,5.51367124]
[1731825791854,0.99493622,90797.0,90796.0,5.51367124]
[1731825792055,0.9949393,90797.0,90796.0,5.51367124]
[1731825793163,0.79806437,90797.0,90796.0,5.51367124]
[1731825794467,0.79815166,90797.0,90796.0,5.51367124]
[1731825795973,0.49815166,90797.0,90796.0,5.51367124]
[1731825796190,0.79815166,90797.0,90796.0,5.51367124]
[1731825796467,0.49815166,90797.0,90796.0,5.51367124]
[1731825796676,0.79815166,90797.0,90796.0,5.44945024]
[1731825796856,0.79815166,90797.0,90796.0,5.05177195]
[1731825797055,0.91222298,90797.0,90796.0,4.89586473]
[1731825797259,0.91222298,90797.0,90796.0,4.58821507]
[1731825797469,1.40520349,90797.0,90796.0,2.65533518]
[1731825797675,1.40520349,90797.0,90796.0,2.32038036]
[1731825797875,1.40520349,90797.0,90796.0,2.19597236]
[1731825798071,1.40520349,90797.0,90796.0,2.19297236]
[1731825798279,1.40520349,90797.0,90796.0,2.17569236]
[1731825798460,1.40520349,90797.0,90796.0,1.95095236]
[1731825798666,1.40520349,90797.0,90796.0,1.85017236]
[1731825798866,1.40520349,90797.0,90796.0,1.64215136]
[1731825799077,1.40525574,90797.0,90796.0,1.63142832]
[1731825799578,1.40525574,90797.0,90796.0,1.31241863]
[1731825799874,1.40525574,90797.0,90796.0,1.14278563]
[1731825800076,1.40525574,90797.0,90796.0,0.93686403]
[1731825800479,1.40525574,90797.0,90796.0,0.79243303]
[1731825800675,1.50370773,90797.0,90796.0,0.71596403]
[1731825800979,1.55877273,90797.0,90796.0,0.58294003]
[1731825801185,1.58082257,90797.0,90796.0,0.58294003]
[1731825801363,1.57160711,90797.0,90796.0,0.51430003]
[1731825801675,1.34097461,90797.0,90796.0,0.36353547]
[1731825801874,1.34097461,90797.0,90796.0,0.30650047]
[1731825802069,1.57156344,90797.0,90796.0,0.30650047]
[1731825802373,1.57156344,90797.0,90796.0,0.17399978]
[1731825802608,1.57156344,90797.0,90796.0,0.14099978]
[1731825802609,1.93236344,90797.0,90796.0,0.14099978]
[1731825802876,1.82360416,90797.0,90796.0,0.14099978]
[1731825803093,1.82360416,90797.0,90796.0,0.01302718]
[1731825803579,2.08741335,90797.0,90796.0,0.01302718]
[1731825804183,2.08741335,90797.0,90796.0,0.00872718]
[1731825804570,1.82360416,90797.0,90796.0,0.00872718]
[1731825805476,0.055071,90787.0,90786.0,0.0051]
[1731825805671,0.055075,90780.0,90779.0,7.735e-05]
[1731825805879,0.6362862,90780.0,90779.0,7.735e-05]
[1731825806070,0.9667662,90780.0,90779.0,7.735e-05]
[1731825807172,0.6362862,90780.0,90779.0,7.735e-05]
[1731825808384,0.66448454,90780.0,90779.0,7.735e-05]
[1731825808688,0.22088552,90780.0,90779.0,7.735e-05]
[1731825808982,0.35263309,90780.0,90779.0,0.03137735]
[1731825809778,0.30429326,90780.0,90779.0,0.03137735]
[1731825816572,0.30429326,90780.0,90779.0,0.02337735]
[1731825817187,0.38556454,90780.0,90779.0,0.02337735]
[1731825817686,0.22088552,90780.0,90779.0,0.02337735]
[1731825817895,0.38580389,90780.0,90779.0,0.02337735]
[1731825818391,0.27447785,90780.0,90779.0,0.02337735]
[1731825820597,0.27447797,90780.0,90779.0,0.02337735]
[1731825821181,0.10919023,90780.0,90779.0,0.02337735]
[1731825821387,0.05559778,90780.0,90779.0,0.02337735]
[1731825821593,0.08188,90782.0,90779.0,0.02337735]
[1731825821785,0.08188,90782.0,90780.0,0.031]
[1731825822081,0.60823715,90784.0,90780.0,0.031]
[1731825822396,0.66273789,90784.0,90780.0,0.031]
[1731825822587,0.16499714,90783.0,90780.0,0.031]
[1731825822983,0.16499714,90783.0,90780.0,0.086075]
[1731825823190,0.24687714,90783.0,90780.0,0.086075]
[1731825823893,0.16499714,90782.0,90780.0,0.086075]
[1731825824093,0.24687714,90783.0,90780.0,0.086075]
[1731825824599,0.00060001,90784.0,90783.0,0.055073]
[1731825824799,0.22075807,90791.0,90789.0,0.055069]
[1731825825003,0.00013954,90797.0,90796.0,0.055065]
[1731825825181,0.16499714,90803.0,90801.0,0.055062]
[1731825825493,0.16499714,90806.0,90805.0,0.05506]
[1731825825695,0.16528774,90811.0,90802.0,0.0314]
[1731825825897,0.16528774,90811.0,90808.0,0.055058]
[1731825826286,0.00010171,90809.0,90808.0,0.055058]
[1731825831806,0.00010171,90809.0,90808.0,0.047058]
[1731825836827,0.00010171,90809.0,90808.0,0.13046574]
[1731825837132,0.00010171,90809.0,90808.0,0.46082574]
[1731825837338,0.0615,90830.0,90808.0,0.46082574]
[1731825837339,0.0306,90830.0,90808.0,0.46082574]
[1731825837522,0.0306,90830.0,90827.0,0.055046]
[1731825837835,0.0306,90830.0,90826.0,0.08340774]
[1731825838127,0.0306,90830.0,90828.0,0.055045]
[1731825838331,9.921e-05,90829.0,90828.0,0.055045]
[1731825838530,9.921e-05,90829.0,90828.0,0.415845]
[1731825840533,0.05375236,90832.0,90831.0,0.055044]
[1731825840737,0.08340774,90841.0,90836.0,0.05504]
[1731825841029,0.08340774,90841.0,90837.0,0.05504]
[1731825841238,0.13853439,90841.0,90837.0,0.05504]
[1731825841736,8.831e-05,90840.0,90839.0,0.055039]
[1731825843530,8.831e-05,90840.0,90836.0,0.3608]
[1731825843859,0.08340774,90837.0,90836.0,0.3608]
[1731825844738,8.831e-05,90840.0,90836.0,0.3608]
[1731825845035,0.08340774,90837.0,90836.0,0.3608]
[1731825846634,0.08340774,90837.0,90836.0,0.3528]
[1731825847339,0.08340774,90837.0,90828.0,0.3659]
[1731825847340,0.44420774,90837.0,90828.0,0.0051]
[1731825847636,0.44420774,90837.0,90825.0,9.443e-05]
[1731825847637,0.08340774,90829.0,90825.0,9.443e-05]
[1731825849437,0.08340774,90834.0,90825.0,9.443e-05]
[1731825853746,0.08340774,90826.0,90825.0,9.443e-05]
[1731825855249,0.13915934,90826.0,90825.0,9.443e-05]
[1731825856138,0.22095934,90826.0,90817.0,0.00104411]
[1731825856339,0.0303,90825.0,90817.0,0.00104411]
[1731825857554,0.0303,90825.0,90818.0,0.00524818]
[1731825857851,0.0303,90825.0,90817.0,0.00104411]
[1731825858050,0.0303,90825.0,90818.0,0.00525749]
[1731825858244,0.0303,90825.0,90817.0,0.00104411]
[1731825858439,0.0303,90825.0,90819.0,0.08340774]
[1731825859249,0.0303,90825.0,90820.0,0.055051]
[1731825859641,0.0303,90825.0,90821.0,0.00529651]
[1731825859836,0.0303,90825.0,90822.0,0.00534687]
[1731825860036,0.0303,90825.0,90823.0,0.14380361]
[1731825860258,0.0303,90825.0,90824.0,0.00534687]
[1731825860638,0.0303,90825.0,90824.0,0.01390268]
[1731825860955,0.0303,90825.0,90824.0,0.00534687]
[1731825861441,0.0303,90825.0,90823.0,0.13845674]
[1731825861442,0.0303,90825.0,90823.0,0.13580361]
[1731825862050,0.0303,90825.0,90823.0,0.055049]
[1731825863650,0.0303,90825.0,90824.0,0.28035107]
[1731825864038,0.00060001,90837.0,90836.0,0.055041]
[1731825864346,8.831e-05,90840.0,90836.0,0.055041]
[1731825864952,8.831e-05,90840.0,90833.0,0.19653918]
[1731825865346,8.831e-05,90840.0,90834.0,0.055042]
[1731825865644,8.831e-05,90840.0,90835.0,0.19653918]
[1731825865860,8.831e-05,90840.0,90834.0,0.33498892]
[1731825866673,8.831e-05,90840.0,90836.0,0.19653918]
[1731825866957,8.831e-05,90840.0,90839.0,0.08340774]
[1731825867163,8.831e-05,90840.0,90839.0,0.27994692]
[1731825867347,8.831e-05,90840.0,90839.0,0.19653918]
[1731825867542,8.831e-05,90840.0,90838.0,0.13844774]
[1731825867950,8.831e-05,90840.0,90839.0,0.00885445]
[1731825868147,8.831e-05,90840.0,90839.0,0.00885441]
[1731825869353,8.831e-05,90840.0,90839.0,0.35431439]
[1731825869556,8.831e-05,90840.0,90839.0,0.09226215]
[1731825870256,8.831e-05,90840.0,90839.0,0.00885441]
[1731825870646,8.831e-05,90840.0,90839.0,0.27104652]
[1731825873356,8.831e-05,90840.0,90838.0,0.31723211]
[1731825873658,8.831e-05,90840.0,90839.0,0.00534977]
[1731825873875,8.831e-05,90840.0,90839.0,0.27610274]
[1731825874355,8.831e-05,90840.0,90839.0,0.00534977]
[1731825874761,8.831e-05,90840.0,90839.0,0.26754188]
[1731825875262,8.831e-05,90840.0,90839.0,0.00534977]
[1731825875456,8.831e-05,90840.0,90839.0,0.26746126]
[1731825875759,8.831e-05,90840.0,90839.0,0.00534977]
[1731825876661,8.831e-05,90840.0,90838.0,0.05238977]
[1731825880162,8.831e-05,90840.0,90839.0,0.08340774]
[1731825883557,8.831e-05,90840.0,90839.0,0.44420774]
[1731825885058,8.831e-05,90840.0,90839.0,0.45290133]
[1731825885362,8.831e-05,90840.0,90839.0,0.44420774]
[1731825885867,8.831e-05,90840.0,90839.0,0.50698366]
[1731825886058,8.831e-05,90840.0,90839.0,0.49829174]
[1731825886364,8.831e-05,90840.0,90839.0,0.70353814]
[1731825886764,8.831e-05,90840.0,90839.0,0.59041477]
[1731825886951,8.831e-05,90840.0,90839.0,0.62121477]
[1731825887565,8.831e-05,90840.0,90839.0,0.53780703]
[1731825887764,8.831e-05,90840.0,90839.0,0.52909174]
[1731825887951,8.831e-05,90840.0,90839.0,0.5378771]
[1731825888659,8.831e-05,90840.0,90839.0,0.54340074]
[1731825889270,8.831e-05,90840.0,90839.0,0.88885012]
[1731825889450,8.831e-05,90840.0,90839.0,0.80544238]
[1731825889864,8.831e-05,90840.0,90839.0,0.54340074]
[1731825890067,8.831e-05,90840.0,90839.0,0.62680848]
[1731825890467,8.831e-05,90840.0,90839.0,0.54340074]
[1731825891159,8.831e-05,90840.0,90839.0,0.54362522]
[1731825891565,0.0325,90843.0,90842.0,0.055037]
[1731825891769,0.0325,90843.0,90842.0,0.06957048]
[1731825893256,0.0325,90843.0,90842.0,0.08089257]
[1731825893974,0.0325,90843.0,90842.0,0.3318692]
[1731825894263,0.0325,90843.0,90842.0,0.055037]
[1731825894469,0.0325,90843.0,90842.0,0.08105334]
[1731825894668,0.0325,90843.0,90842.0,0.08105297]
[1731825895065,0.0325,90843.0,90842.0,0.06974009]
[1731825895378,0.0325,90843.0,90842.0,0.08104468]
[1731825895870,0.0325,90843.0,90842.0,0.06974009]
[1731825896064,0.0325,90843.0,90842.0,0.08104005]
[1731825896258,0.0325,90843.0,90842.0,0.33207738]
[1731825896567,0.0325,90843.0,90842.0,0.06973279]
[1731825896756,0.1645984,90843.0,90842.0,0.06973279]
[1731825897967,0.0325,90843.0,90842.0,0.06973279]
[1731825898373,0.0325,90843.0,90842.0,0.055037]
[1731825898566,0.0325,90843.0,90842.0,0.06958605]
[1731825899173,0.1646041,90843.0,90842.0,0.06958605]
[1731825899471,0.0325,90843.0,90842.0,0.06958605]
[1731825900469,0.0325,90843.0,90842.0,0.01454905]
[1731825900677,0.11590774,90843.0,90840.0,0.26234459]
[1731825900883,0.11590774,90843.0,90838.0,0.05504]
[1731825901369,0.1321061,90842.0,90833.0,0.32711761]
[1731825901674,0.27055184,90841.0,90833.0,0.32711761]
[1731825901873,0.13211502,90840.0,90839.0,0.26250461]
[1731825902071,0.13211502,90840.0,90838.0,0.26250461]
[1731825902072,0.0308,90840.0,90838.0,0.26250461]
[1731825902374,0.0308,90840.0,90839.0,0.26250461]
[1731825903481,0.0308,90840.0,90831.0,0.3608]
[1731825903482,0.08340774,90841.0,90837.0,0.26250461]
[1731825903777,0.13210229,90839.0,90837.0,0.13844774]
[1731825903976,0.13210229,90840.0,90837.0,0.40095235]
[1731825904180,0.13210229,90842.0,90839.0,0.26250461]
[1731825904475,0.13210229,90841.0,90838.0,0.26250461]
[1731825904869,0.13210229,90841.0,90839.0,0.26250461]
[1731825905671,0.0325,90843.0,90838.0,0.05504]
[1731825905876,0.0325,90843.0,90841.0,0.26250391]
[1731825906479,0.0325,90843.0,90841.0,0.25450391]
[1731825906971,0.0325,90843.0,90838.0,0.05504]
[1731825907167,8.464e-05,90846.0,90841.0,0.08340774]
[1731825907373,0.13208759,90845.0,90841.0,0.08340774]
[1731825907567,0.13217223,90846.0,90841.0,0.08340774]
[1731825907876,0.13208759,90845.0,90844.0,0.055036]
[1731825908179,0.13208571,90845.0,90844.0,0.055036]
[1731825908877,8.464e-05,90846.0,90844.0,0.055036]
[1731825909580,8.464e-05,90846.0,90842.0,0.19685751]
[1731825910180,0.08340774,90843.0,90839.0,0.19685751]
[1731825910381,0.0331,90842.0,90839.0,0.19685751]
[1731825910572,0.0331,90842.0,90838.0,0.19685751]
[1731825910770,0.13209009,90840.0,90839.0,0.19685751]
[1731825912170,0.13209009,90840.0,90836.0,0.055041]
[1731825912379,0.13209009,90840.0,90839.0,0.19686568]
[1731825912578,0.13209009,90840.0,90839.0,0.20216696]
[1731825913175,0.0331,90842.0,90831.0,0.44748]
[1731825913176,0.0331,90842.0,90838.0,0.19686568]
[1731825913378,0.0331,90842.0,90838.0,0.15226316]
[1731825913784,0.19789871,90842.0,90831.0,0.3608]
[1731825913989,0.19789871,90842.0,90832.0,0.00845907]
[1731825913990,0.13208775,90835.0,90832.0,0.00845907]
[1731825914188,0.13208775,90835.0,90831.0,0.3608]
[1731825915883,0.08340774,90837.0,90831.0,0.3608]
[1731825916579,0.0303,90836.0,90831.0,0.3608]
[1731825918184,0.0303,90836.0,90827.0,0.0006]
[1731825918381,0.16238775,90836.0,90825.0,0.38216461]
[1731825919086,0.0303,90836.0,90826.0,0.32711761]
[1731825919495,0.0303,90836.0,90822.0,0.09118]
[1731825919496,0.08340774,90832.0,90823.0,0.00165111]
[1731825919985,0.08340774,90826.0,90823.0,0.00165111]
[1731825920990,0.0315,90825.0,90823.0,0.00165111]
[1731825922389,0.0315,90825.0,90818.0,0.07705885]
[1731825922681,0.0315,90825.0,90818.0,0.13119059]
[1731825923190,0.0315,90825.0,90818.0,0.18624159]
[1731825923380,0.0315,90825.0,90819.0,0.055051]
[1731825925078,0.0315,90825.0,90820.0,0.05505]
[1731825925284,0.0315,90825.0,90821.0,0.00525769]
[1731825925479,0.0315,90825.0,90822.0,0.00525769]
[1731825925681,0.0315,90825.0,90823.0,0.00525769]
[1731825925880,0.0315,90825.0,90821.0,0.05505]
[1731825925881,0.0315,90825.0,90824.0,0.00525769]
[1731825928993,0.0315,90825.0,90813.0,0.32711761]
[1731825929294,0.0315,90825.0,90814.0,0.00524946]
[1731825929295,0.055053,90816.0,90814.0,0.00524946]
[1731825929498,0.055053,90816.0,90807.0,0.00012952]
[1731825929499,0.0612,90815.0,90807.0,0.00012952]
[1731825929684,0.0612,90815.0,90808.0,0.00520552]
[1731825929892,0.0612,90815.0,90809.0,0.00520552]
[1731825930079,0.0612,90815.0,90807.0,0.00012952]
[1731825930281,0.0612,90815.0,90808.0,0.0052036]
[1731825930484,0.0612,90815.0,90807.0,0.00012952]
[1731825930683,0.0612,90815.0,90808.0,0.00521513]
[1731825930986,0.0612,90815.0,90807.0,0.00012952]
[1731825930987,0.13208775,90814.0,90807.0,0.00012952]
[1731825931182,0.19328775,90815.0,90807.0,0.00012952]
[1731825931592,0.08340774,90811.0,90807.0,0.00012952]
[1731825932091,0.0329,90810.0,90807.0,0.00012952]
[1731825932894,0.415858,90808.0,90807.0,0.00012952]
[1731825933285,0.54764923,90808.0,90807.0,0.00012952]
[1731825933596,0.415858,90808.0,90807.0,0.00012952]
[1731825933791,0.54765152,90808.0,90807.0,0.00012952]
[1731825934290,0.415858,90808.0,90807.0,0.00012952]
[1731825934494,0.41595601,90808.0,90807.0,0.00012952]
[1731825934989,0.63110254,90808.0,90807.0,0.00012952]
[1731825935210,0.53002575,90808.0,90807.0,0.00012952]
[1731825936583,0.53002575,90808.0,90796.0,0.08228888]
[1731825936793,0.3608,90798.0,90796.0,0.08228888]
[1731825938196,0.3608,90798.0,90791.0,0.13847574]
[1731825939791,0.3608,90798.0,90791.0,0.055068]
[1731825940200,0.44420774,90798.0,90791.0,0.055068]
[1731825940902,0.44420774,90798.0,90787.0,8.551e-05]
[1731825940903,0.4982861,90798.0,90787.0,8.551e-05]
[1731825941099,0.0317,90797.0,90787.0,8.551e-05]
[1731825942991,0.055065,90796.0,90787.0,8.551e-05]
[1731825944294,0.0312,90795.0,90787.0,8.551e-05]